fUST/lending_fUST_20240203
["ID","MTS","AMOUNT","RATE_DAILY","PERIOD"]
[313224950,1706969440445,-500.0,0.00027397,2]
[313224951,1706969440456,-500.0,0.00027397,2]
[313224952,1706969440466,-500.0,0.00027397,2]
[313224953,1706969440476,-552.69410233,0.00027397,2]
[313224954,1706969440485,-500.0,0.00027397,2]
[313224955,1706969440495,-500.0,0.00027397,2]
[313224956,1706969440504,-517.56,0.00027397,2]
[313224957,1706969440514,-500.0,0.00027397,2]
[313224958,1706969440525,-500.0,0.00027397,2]
[313224959,1706969440534,-500.0,0.00027397,2]
[313224960,1706969440543,-500.0,0.00027397,2]
[313224961,1706969440552,-504.73072043,0.00027397,2]
[313224962,1706969440562,-398.956118,0.00027397,2]
[313224963,1706969440572,-398.956118,0.00027397,2]
[313224964,1706969440582,-500.0,0.00027397,2]
[313224965,1706969440591,-398.956118,0.00027397,2]
[313224966,1706969440600,-398.956118,0.00027397,2]
[313224967,1706969440609,-500.0,0.00027397,2]
[313224968,1706969440618,-1516.36,0.00027397,2]
[313224969,1706969440627,-500.0,0.00027397,2]
[313224970,1706969440636,-500.0,0.00027397,2]
[313224971,1706969440646,-500.0,0.00027397,2]
[313224972,1706969440655,-850.63,0.00027397,2]
[313224973,1706969440665,-506.1910347,0.00027397,2]
[313224974,1706969440675,-500.0,0.00027397,2]
[313224975,1706969440686,-500.0,0.00027397,2]
[313224976,1706969440696,-500.0,0.00027397,2]
[313224977,1706969440705,-549.09261835,0.00027397,2]
[313224978,1706969440714,-501.37259724,0.00027397,2]
[313224979,1706969440723,-500.0,0.00027397,2]
[313224980,1706969440732,-3265.82,0.00027397,2]
[313224981,1706969440742,-500.0,0.00027397,2]
[313224982,1706969440751,-500.0,0.00027397,2]
[313224983,1706969440760,-736.13,0.00027397,2]
[313224984,1706969440770,-1253.98,0.00027397,2]
[313224985,1706969440778,-500.0,0.00027397,2]
[313224986,1706969440787,-500.0,0.00027397,2]
[313224987,1706969440797,-500.0,0.00027397,2]
[313224988,1706969440806,-500.0,0.00027397,2]
[313224989,1706969440815,-1809.7,0.00027397,2]
[313224990,1706969440825,-474.96707827,0.00027397,2]
[313224991,1706969440834,-500.0,0.00027397,2]
[313224992,1706969440843,-500.0,0.00027397,2]
[313224993,1706969440852,-11852.05,0.00027397,2]
[313224994,1706969440861,-500.0,0.00027397,2]
[313224995,1706969440870,-2706.67,0.00027397,2]
[313224996,1706969440878,-799.04,0.00027397,2]
[313224997,1706969440887,-500.0,0.00027397,2]
[313224998,1706969440896,-500.0,0.00027397,2]
[313224999,1706969440905,-300.0,0.000275,2]
[313225000,1706969440914,-279.73730157,0.00027671,2]
[313225001,1706969440923,-1651.31078755,0.00027671,2]
[313225002,1706969440932,-1828.0164428,0.00027671,2]
[313225003,1706969440941,-500.0,0.00027671,2]
[313225004,1706969440951,-500.0,0.00027671,2]
[313225005,1706969440960,-500.0,0.00027671,2]
[313225006,1706969440970,-2087.50321187,0.00027671,2]
[313225007,1706969440979,-300.0,0.00027671,2]
[313225008,1706969440988,-500.0,0.00027671,2]
[313225009,1706969440997,-503.93231267,0.00027671,2]
[313225010,1706969441007,-500.0,0.00027671,2]
[313225011,1706969441016,-225.76293109,0.00027671,2]
[313225012,1706969441025,-231.06175359,0.00027671,2]
[313225013,1706969441034,-608.02615365,0.00027671,2]
[313225014,1706969441044,-504.99545555,0.00027671,2]
[313225015,1706969441053,-500.0,0.00027671,2]
[313225016,1706969441062,-500.0,0.00027671,2]
[313225017,1706969441071,-500.0,0.00027671,2]
[313225018,1706969441081,-500.0,0.00027671,2]
[313225019,1706969441090,-510.09356801,0.00027671,2]
[313225020,1706969441099,-500.0,0.00027671,2]
[313225021,1706969441108,-500.0,0.00027671,2]
[313225022,1706969441118,-500.0,0.00027671,2]
[313225023,1706969441127,-500.0,0.00027671,2]
[313225024,1706969441136,-151.0,0.00027671,2]
[313225025,1706969441145,-500.0,0.00027671,2]
[313225026,1706969441154,-151.0,0.00027671,2]
[313225027,1706969441164,-500.0,0.00027671,2]
[313225028,1706969441173,-500.0,0.00027671,2]
[313225029,1706969441184,-500.0,0.00027671,2]
[313225030,1706969441194,-500.0,0.00027671,2]
[313225031,1706969441203,-543.0557563,0.00027671,2]
[313225032,1706969441212,-500.0,0.00027671,2]
[313225033,1706969441223,-517.56,0.00027671,2]
[313225034,1706969441232,-500.0,0.00027671,2]
[313225035,1706969441243,-500.0,0.00027671,2]
[313225036,1706969441252,-500.0,0.00027671,2]
[313225037,1706969441261,-500.0,0.00027671,2]
[313225038,1706969441270,-398.956118,0.00027671,2]
[313225039,1706969441279,-500.0,0.00027671,2]
[313225040,1706969441288,-398.956118,0.00027671,2]
[313225041,1706969441297,-1516.36,0.00027671,2]
[313225042,1706969441306,-500.0,0.00027671,2]
[313225043,1706969441315,-500.0,0.00027671,2]
[313225044,1706969441324,-500.0,0.00027671,2]
[313225045,1706969441332,-850.63,0.00027671,2]
[313225046,1706969441342,-500.0,0.00027671,2]
[313225047,1706969441354,-500.0,0.00027671,2]
[313225048,1706969441363,-500.0,0.00027671,2]
[313225049,1706969441372,-500.0,0.00027671,2]
[313225050,1706969441382,-3265.82,0.00027671,2]
[313225051,1706969441393,-500.0,0.00027671,2]
[313225052,1706969441402,-736.13,0.00027671,2]
[313225053,1706969441412,-1253.98,0.00027671,2]
[313225054,1706969441421,-500.0,0.00027671,2]
[313225055,1706969441431,-1809.7,0.00027671,2]
[313225058,1706969441517,-500.0,0.00027671,2]
[313225059,1706969441527,-20.19916202,0.00027671,2]
[313225060,1706969441602,-11831.85083798,0.00027671,2]
[313225061,1706969441612,-500.0,0.00027671,2]
[313225062,1706969441621,-2706.67,0.00027671,2]
[313225063,1706969441630,-799.04,0.00027671,2]
[313225064,1706969441639,-528.05649788,0.00027671,2]
[313225065,1706969441648,-500.0,0.00027671,2]
[313225066,1706969441657,-199.6652776,0.00027671,2]
[313225067,1706969441667,-153.0,0.00027671,2]
[313225068,1706969441676,-153.0,0.00027671,2]
[313225069,1706969441685,-153.0,0.00027671,2]
[313225070,1706969441694,-151.0,0.000279,2]
[313225071,1706969441704,-620.000002,0.00027927,2]
[313225072,1706969441713,-299.7368077,0.00027943,2]
[313225073,1706969441722,-1585.15053624,0.00027943,2]
[313225074,1706969441731,-1857.66500198,0.00027943,2]
[313225075,1706969441741,-1771.1328817,0.00027944,2]
[313225076,1706969441750,-381.96379396,0.00027944,2]
[313225077,1706969441759,-550.66788078,0.00027945,2]
[313225078,1706969441768,-574.18868617,0.00027945,2]
[313225079,1706969441777,-505.08531389,0.00027945,2]
[313225080,1706969441786,-500.0,0.00027945,2]
[313225081,1706969441796,-500.0,0.00027945,2]
[313225082,1706969441806,-500.0,0.00027945,2]
[313225083,1706969441815,-500.0,0.00027945,2]
[313225084,1706969441825,-500.0,0.00027945,2]
[313225085,1706969441835,-500.0,0.00027945,2]
[313225086,1706969441844,-500.0,0.00027945,2]
[313225087,1706969441853,-500.0,0.00027945,2]
[313225088,1706969441863,-151.0,0.00027945,2]
[313225089,1706969441874,-500.0,0.00027945,2]
[313225090,1706969441885,-500.0,0.00027945,2]
[313225091,1706969441895,-500.0,0.00027945,2]
[313225092,1706969441905,-517.56,0.00027945,2]
[313225093,1706969441914,-500.0,0.00027945,2]
[313225094,1706969441924,-150.97208293,0.00027945,2]
[313225095,1706969441933,-398.956118,0.00027945,2]
[313225096,1706969441943,-398.956118,0.00027945,2]
[313225097,1706969441953,-1516.36,0.00027945,2]
[313225098,1706969441962,-500.0,0.00027945,2]
[313225099,1706969441972,-500.0,0.00027945,2]
[313225100,1706969441981,-500.0,0.00027945,2]
[313225101,1706969441991,-850.63,0.00027945,2]
[313225102,1706969442000,-500.0,0.00027945,2]
[313225103,1706969442010,-500.0,0.00027945,2]
[313225104,1706969442019,-500.0,0.00027945,2]
[313225105,1706969442029,-500.0,0.00027945,2]
[313225106,1706969442040,-3265.82,0.00027945,2]
[313225107,1706969442049,-316.44854787,0.00027945,2]
[313225108,1706969442058,-736.13,0.00027945,2]
[313225109,1706969442067,-1253.98,0.00027945,2]
[313225110,1706969442076,-500.0,0.00027945,2]
[313225111,1706969442085,-1809.7,0.00027945,2]
[313225112,1706969442097,-500.0,0.00027945,2]
[313225113,1706969442106,-11852.05,0.00027945,2]
[313225114,1706969442116,-420.32860894,0.00027945,2]
[313225115,1706969442129,-2286.34139106,0.00027945,2]
[313225116,1706969442138,-799.04,0.00027945,2]
[313225117,1706969442148,-500.0,0.00027945,2]
[313225118,1706969442157,-71.34008124,0.00027997,2]
[313225119,1706969442223,-2035.56139266,0.00027997,2]
[313225120,1706969442233,-3396.51812022,0.00027998,2]
[313225121,1706969442245,-188.76031181,0.00027998,2]
[313225122,1706969442254,-151.0,0.00027999,2]
[313225123,1706969442265,-500.0,0.00027999,2]
[313225124,1706969442275,-500.0,0.00027999,2]
[313225125,1706969442284,-606.66960683,0.00027999,2]
[313225126,1706969442294,-500.0,0.00027999,2]
[313225127,1706969442303,-161.80184815,0.00027999,2]
[313225128,1706969442313,-500.0,0.00027999,2]
[313225129,1706969442322,-524.98359654,0.00027999,2]
[313225130,1706969442331,-609.0423047,0.00027999,2]
[313225131,1706969442341,-500.0,0.00027999,2]
[313225132,1706969442350,-558.71347367,0.00027999,2]
[313225133,1706969442360,-500.0,0.00027999,2]
[313225134,1706969442369,-500.0,0.00027999,2]
[313225135,1706969442378,-500.0,0.00027999,2]
[313225136,1706969442387,-500.0,0.00027999,2]
[313225137,1706969442397,-212.68165572,0.00027999,2]
[313225138,1706969442406,-500.0,0.00027999,2]
[313225139,1706969442416,-500.0,0.00027999,2]
[313225140,1706969442425,-398.956118,0.00027999,2]
[313225141,1706969442434,-398.956118,0.00027999,2]
[313225142,1706969442444,-1611.76948657,0.00028,4]
[313225143,1706969442453,-459.92906339,0.00028,3]
[313225144,1706969442463,-6261.28594319,0.00028,2]
[313225145,1706969442478,-8682.19728212,0.00028,2]
[313225146,1706969442492,-7453.33592828,0.00028,2]
[313225147,1706969442506,-16531.00653223,0.00028,2]
[313225189,1706969941212,697.1372444,0.00019558,2]
[313225190,1706970014195,1651.31078755,0.00019558,2]
[313225191,1706970028204,355.22775851,0.00019558,2]
[313225192,1706970028242,1296.08302904,0.00019558,2]
[313225193,1706970050212,1651.31078755,0.00019558,2]
[313225194,1706970056393,155.02015262,0.00019558,2]
[313225195,1706970070220,1571.34773323,0.00019558,2]
[313225196,1706970070380,155.02015262,0.00019558,2]
[313225197,1706970088395,155.73124833,0.00019558,2]
[313225200,1706970315158,426.16226672,0.00015122,2]
[313225201,1706970324124,22104.15036413,0.00019144,2]
[313225202,1706970324155,2795.84963587,0.00019144,2]
[313225203,1706970383147,398.4219063,0.00019052,2]
[313225204,1706970389613,5833.67,0.00019052,2]
[313225205,1706970391813,303.10430889,0.0001995,2]
[313225206,1706970433508,168.546209,0.00019178,2]
[313225208,1706970444646,35629.9764433,0.00019041,2]
[313225209,1706970452632,2313.742544,0.0001904,2]
[313225210,1706970495262,230.576275,0.00019031,2]
[313225215,1706970560713,7120.06,0.00020003,3]
[313225216,1706970571497,1585.69628601,0.0002001,2]
[313225217,1706970572035,5933.38,0.00020003,3]
[313225218,1706970573011,175.55375997,0.0002001,2]
[313225219,1706970579878,1017.12321481,0.0002001,2]
[313225220,1706970581395,1025.37506147,0.00019913,2]
[313225221,1706970582053,500.0,0.0002001,2]
[313225222,1706970582974,6653.3,0.00020003,3]
[313225223,1706970584415,155.0294556,0.0002001,4]
[313225224,1706970585807,609.18883985,0.0002001,2]
[313225225,1706970586610,155.0294556,0.0002001,2]
[313225226,1706970594417,6968.43,0.00020003,3]
[313225227,1706970597708,155.0310062,0.0002001,2]
[313225228,1706970598441,155.0310062,0.0001801,3]
[313225229,1706970605568,5807.03,0.00020003,3]
[313225230,1706970616424,155.0294556,0.0001801,3]
[313225231,1706970618035,19902.67023111,0.0002001,2]
[313225232,1706970620448,18940.25174952,0.0002001,2]
[313225233,1706970627334,562.98112702,0.0002001,2]
[313225234,1706970627943,4032.66,0.00020001,3]
[313225235,1706970629823,562.98112702,0.0002001,2]
[313225236,1706970630123,300.0,0.0002001,2]
[313225311,1706970634025,4974.1517153,0.0002001,2]
[313225312,1706970634451,562.98112702,0.0002001,2]
[313225313,1706970636432,155.0310062,0.00018009,3]
[313225327,1706970637786,-881.17437354,0.00020011,2]
[313225329,1706970637796,-176.70010518,0.00020011,2]
[313225330,1706970637807,-939.32412365,0.00020011,2]
[313225331,1706970637819,-77.79909116,0.00020011,2]
[313225332,1706970637829,-287.87736975,0.00020011,2]
[313225333,1706970637838,-157.39051013,0.00020011,2]
[313225334,1706970637847,-233.30733566,0.00020011,2]
[313225335,1706970637856,-155.0294556,0.00020011,2]
[313225336,1706970637866,-37034.1990655,0.00020011,2]
[313225337,1706970637875,-83865.18058421,0.00020011,2]
[313225338,1706970637885,-155.0310062,0.00020026,2]
[313225339,1706970637894,-1200.7118793,0.00020026,2]
[313225340,1706970637903,-243.65021218,0.00020026,2]
[313225341,1706970637913,-639.85213328,0.00020145,2]
[313225342,1706970637922,-1803.33887905,0.00020146,2]
[313225344,1706970637932,-156.8872007,0.00020163,2]
[313225345,1706970637942,-309.29107459,0.00020163,2]
[313225346,1706970637952,-591.99312524,0.00020163,2]
[313225347,1706970637962,-230.88142086,0.00020163,2]
[313225348,1706970637971,-329.63381135,0.00020163,2]
[313225349,1706970637980,-155.35403325,0.00020163,2]
[313225350,1706970637989,-200.0,0.00020163,2]
[313225351,1706970638000,-300.0,0.00020163,2]
[313225352,1706970638010,-379.00530314,0.00020163,7]
[313225353,1706970638019,-2012.78803285,0.00020163,2]
[313225354,1706970638028,-11756.79096378,0.00020163,2]
[313225355,1706970638037,-155.05116031,0.00020164,2]
[313225356,1706970638047,-913.52520602,0.00020417,2]
[313225357,1706970638056,-303.10430888,0.00021307,2]
[313225358,1706970638065,-4376.935842,0.00021918,2]
[313225359,1706970638074,-166.666666,0.00021918,2]
[313225360,1706970638083,-3977.44618093,0.00022,2]
[313225361,1706970638093,-426.88835692,0.00022,2]
[313225362,1706970638102,-326.17134224,0.00022,2]
[313225363,1706970638111,-200.0,0.00022052,7]
[313225364,1706970638120,-166.666666,0.00022431,2]
[313225365,1706970638129,-303.10430888,0.00022665,2]
[313225366,1706970638138,-166.666666,0.00022944,2]
[313225367,1706970638149,-9959.98060866,0.00023,2]
[313225368,1706970638158,-1262.10938839,0.00023,2]
[313225369,1706970638168,-1025.3750614,0.00023054,2]
[313225370,1706970638177,-166.666666,0.00023456,2]
[313225371,1706970638186,-918.07862575,0.000239,2]
[313225372,1706970638196,-166.666666,0.00023969,2]
[313225373,1706970638206,-821.38040503,0.00024,2]
[313225374,1706970638215,-303.10430888,0.00024022,2]
[313225375,1706970638224,-280.0,0.00024257,7]
[313225376,1706970638234,-198.71456401,0.00024349,2]
[313225377,1706970638244,-166.666666,0.00024482,2]
[313225378,1706970638254,-335.29979556,0.00025,2]
[313225379,1706970638263,-169.636899,0.00025131,2]
[313225380,1706970638368,-777.0155262,0.00025286,2]
[313225381,1706970638378,-13854.01251817,0.00025288,2]
[313225382,1706970638387,-1545.98161026,0.00025288,2]
[313225383,1706970638396,-500.0,0.00025295,2]
[313225384,1706970638405,-374.32229926,0.00025295,2]
[313225385,1706970638415,-500.0,0.00025295,2]
[313225386,1706970638425,-500.0,0.00025295,2]
[313225387,1706970638434,-311.37143275,0.00025295,2]
[313225388,1706970638444,-500.0,0.00025295,2]
[313225389,1706970638453,-500.0,0.00025295,2]
[313225390,1706970638462,-500.0,0.00025295,2]
[313225391,1706970638471,-400.0,0.00025295,2]
[313225392,1706970638481,-500.0,0.00025295,2]
[313225393,1706970638491,-500.0,0.00025295,2]
[313225394,1706970638500,-500.0,0.00025295,2]
[313225395,1706970638509,-500.0,0.00025295,2]
[313225396,1706970638518,-500.0,0.00025295,2]
[313225397,1706970638527,-500.0,0.00025295,2]
[313225398,1706970638537,-500.0,0.00025295,2]
[313225399,1706970638546,-500.0,0.00025295,2]
[313225400,1706970638556,-500.0,0.00025295,2]
[313225401,1706970638565,-500.0,0.00025295,2]
[313225402,1706970638575,-332.96726867,0.00025295,2]
[313225403,1706970638587,-388.58437497,0.00025295,2]
[313225404,1706970638596,-500.0,0.00025295,2]
[313225405,1706970638606,-500.0,0.00025295,2]
[313225406,1706970638615,-500.0,0.00025295,2]
[313225407,1706970638624,-500.0,0.00025295,2]
[313225408,1706970638633,-500.0,0.00025295,2]
[313225409,1706970638642,-500.0,0.00025295,2]
[313225410,1706970638653,-500.0,0.00025295,2]
[313225411,1706970638662,-500.0,0.00025295,2]
[313225412,1706970638671,-383.14651293,0.00025295,2]
[313225413,1706970638680,-500.0,0.00025295,2]
[313225414,1706970638689,-500.0,0.00025295,2]
[313225415,1706970638698,-250.0,0.00025295,2]
[313225416,1706970638708,-500.0,0.00025295,2]
[313225417,1706970638718,-500.0,0.00025295,2]
[313225418,1706970638727,-500.0,0.00025295,2]
[313225419,1706970638737,-500.0,0.00025295,2]
[313225420,1706970638747,-500.0,0.00025295,2]
[313225421,1706970638756,-258.06891963,0.00025295,2]
[313225422,1706970638766,-500.0,0.00025295,2]
[313225423,1706970638776,-500.0,0.00025295,2]
[313225424,1706970638785,-500.0,0.00025295,2]
[313225425,1706970638794,-500.0,0.00025295,2]
[313225426,1706970638804,-391.0,0.00025295,2]
[313225427,1706970638813,-500.0,0.00025295,2]
[313225428,1706970638822,-500.0,0.00025295,2]
[313225429,1706970638832,-500.0,0.00025295,2]
[313225430,1706970638841,-500.0,0.00025295,2]
[313225431,1706970638851,-500.0,0.00025295,2]
[313225432,1706970638861,-500.0,0.00025295,2]
[313225433,1706970638871,-500.0,0.00025295,2]
[313225434,1706970638880,-500.0,0.00025295,2]
[313225435,1706970638890,-500.0,0.00025295,2]
[313225436,1706970638899,-500.0,0.00025295,2]
[313225437,1706970638908,-50000.0,0.00025296,2]
[313225438,1706970638919,-52170.00029349,0.00025296,2]
[313225439,1706970638929,-303.10430888,0.00025379,2]
[313225440,1706970638938,-200.0,0.00025479,2]
[313225441,1706970638948,-2700.18193004,0.00025845,2]
[313225442,1706970638957,-1025.3750614,0.00026195,3]
[313225443,1706970638966,-3878.22590192,0.00026379,2]
[313225444,1706970638976,-391.0,0.00026683,15]
[313225445,1706970638986,-620.00003818,0.0002673,2]
[313225446,1706970638995,-300.0,0.00027,2]
[313225447,1706970639005,-48933.02600869,0.000271,2]
[313225448,1706970639015,-164.379198,0.000271,2]
[313225449,1706970639024,-151.0,0.000271,2]
[313225450,1706970639035,-319.164894,0.000271,2]
[313225451,1706970639045,-319.164894,0.000271,2]
[313225452,1706970639055,-151.0,0.000271,2]
[313225453,1706970639065,-5000.0,0.00027379,2]
[313225454,1706970639074,-5000.0,0.0002738,2]
[313225455,1706970639085,-5000.0,0.0002738,2]
[313225456,1706970639094,-503.93231267,0.00027397,2]
[313225457,1706970639103,-500.0,0.00027397,2]
[313225458,1706970639113,-500.0,0.00027397,2]
[313225459,1706970639122,-504.99545555,0.00027397,2]
[313225460,1706970639132,-500.0,0.00027397,2]
[313225461,1706970639141,-500.0,0.00027397,2]
[313225462,1706970639151,-503.81745858,0.00027397,2]
[313225463,1706970639161,-500.0,0.00027397,2]
[313225464,1706970639171,-525.34101276,0.00027397,2]
[313225465,1706970639180,-500.0,0.00027397,2]
[313225466,1706970639189,-500.0,0.00027397,2]
[313225467,1706970639199,-500.0,0.00027397,2]
[313225468,1706970639208,-500.0,0.00027397,2]
[313225469,1706970639218,-500.0,0.00027397,2]
[313225470,1706970639227,-500.0,0.00027397,2]
[313225471,1706970639236,-500.0,0.00027397,2]
[313225472,1706970639246,-500.0,0.00027397,2]
[313225473,1706970639256,-320.28093465,0.00027397,2]
[313225474,1706970639265,-504.73072043,0.00027397,2]
[313225475,1706970639275,-505.61619828,0.00027397,2]
[313225476,1706970639284,-278.60824485,0.00027397,2]
[313225477,1706970639292,-500.0,0.00027397,2]
[313225478,1706970639302,-503.37405009,0.00027397,2]
[313225479,1706970639311,-500.0,0.00027397,2]
[313225480,1706970639320,-500.0,0.00027397,2]
[313225481,1706970639329,-500.0,0.00027397,2]
[313225482,1706970639339,-505.95287227,0.00027397,2]
[313225483,1706970639348,-501.95979755,0.00027397,2]
[313225484,1706970639358,-501.56367019,0.00027397,2]
[313225485,1706970639367,-240.43038265,0.00027397,2]
[313225486,1706970639377,-501.37259724,0.00027397,2]
[313225487,1706970639387,-500.0,0.00027397,2]
[313225488,1706970639396,-500.0,0.00027397,2]
[313225489,1706970639405,-530.44382497,0.00027397,2]
[313225490,1706970639415,-151.0,0.00027397,2]
[313225491,1706970639424,-509.16728415,0.00027397,2]
[313225492,1706970639434,-500.0,0.00027397,2]
[313225493,1706970639444,-151.0,0.00027397,2]
[313225494,1706970639453,-500.0,0.00027397,2]
[313225495,1706970639463,-155.02015262,0.00027397,2]
[313225496,1706970639472,-180.9410393,0.00027397,2]
[313225497,1706970639481,-500.0,0.00027397,2]
[313225498,1706970639490,-500.0,0.00027397,2]
[313225499,1706970639500,-500.0,0.00027397,2]
[313225500,1706970639509,-500.0,0.00027397,2]
[313225501,1706970639518,-770.64,0.00027397,2]
[313225502,1706970639528,-500.0,0.00027397,2]
[313225503,1706970639537,-500.0,0.00027397,2]
[313225504,1706970639546,-500.0,0.00027397,2]
[313225505,1706970639556,-500.0,0.00027397,2]
[313225506,1706970639570,-505.91505518,0.00027397,2]
[313225507,1706970639579,-500.0,0.00027397,2]
[313225508,1706970639587,-500.0,0.00027397,2]
[313225509,1706970639597,-500.0,0.00027397,2]
[313225510,1706970639607,-500.0,0.00027397,2]
[313225511,1706970639616,-151.0,0.00027397,2]
[313225512,1706970639626,-500.0,0.00027397,2]
[313225513,1706970639635,-552.69410233,0.00027397,2]
[313225514,1706970639646,-500.0,0.00027397,2]
[313225515,1706970639655,-319.164894,0.00027397,2]
[313225516,1706970639665,-319.164894,0.00027397,2]
[313225517,1706970639674,-500.0,0.00027397,2]
[313225518,1706970639683,-301.93124772,0.00027397,2]
[313225519,1706970639692,-500.0,0.00027397,2]
[313225520,1706970639702,-151.0,0.00027397,2]
[313225521,1706970639711,-505.61402559,0.00027397,7]
[313225522,1706970639720,-503.63711727,0.00027397,2]
[313225523,1706970639730,-500.0,0.00027397,2]
[313225525,1706970639739,-534.13,0.00027397,2]
[313225527,1706970639748,-1453.18,0.00027397,2]
[313225528,1706970639758,-500.0,0.00027397,2]
[313225529,1706970639769,-500.0,0.00027397,2]
[313225530,1706970639778,-500.0,0.00027397,2]
[313225531,1706970639787,-500.0,0.00027397,2]
[313225532,1706970639796,-516.25072468,0.00027397,2]
[313225533,1706970639807,-500.0,0.00027397,2]
[313225534,1706970639815,-506.1910347,0.00027397,2]
[313225535,1706970639824,-500.0,0.00027397,2]
[313225536,1706970639833,-500.0,0.00027397,2]
[313225537,1706970639842,-500.0,0.00027397,2]
[313225538,1706970639851,-503.75418424,0.00027397,2]
[313225539,1706970639861,-500.0,0.00027397,2]
[313225540,1706970639871,-500.0,0.00027397,2]
[313225541,1706970639880,-741.37,0.00027397,2]
[313225542,1706970639889,-549.09261835,0.00027397,2]
[313225544,1706970639897,-308.37268485,0.00027397,2]
[313225545,1706970639907,-1201.73,0.00027397,2]
[313225547,1706970639916,-166.70098911,0.00027397,2]
[313225548,1706970639925,-500.0,0.00027397,2]
[313225549,1706970639933,-1734.29,0.00027397,2]
[313225550,1706970639943,-500.0,0.00027397,2]
[313225551,1706970639951,-500.0,0.00027397,2]
[313225552,1706970639960,-500.0,0.00027397,2]
[313225553,1706970639970,-3129.74,0.00027397,2]
[313225554,1706970639979,-500.0,0.00027397,2]
[313225555,1706970639988,-10865.22,0.00027397,2]
[313225556,1706970639998,-500.0,0.00027397,2]
[313225557,1706970640007,-4533.96,0.00027397,2]
[313225558,1706970640016,-2481.11,0.00027397,2]
[313225559,1706970640026,-500.0,0.00027397,2]
[313225560,1706970640035,-3487.92723672,0.00027438,2]
[313225561,1706970640044,-300.0,0.000275,2]
[313225562,1706970640053,-500.0,0.00027671,2]
[313225563,1706970640062,-500.0,0.00027671,2]
[313225564,1706970640070,-500.0,0.00027671,2]
[313225565,1706970640080,-500.0,0.00027671,2]
[313225566,1706970640089,-500.0,0.00027671,2]
[313225567,1706970640098,-500.0,0.00027671,2]
[313225568,1706970640107,-500.0,0.00027671,2]
[313225569,1706970640117,-500.0,0.00027671,2]
[313225570,1706970640126,-500.0,0.00027671,2]
[313225571,1706970640135,-500.0,0.00027671,2]
[313225572,1706970640143,-500.0,0.00027671,2]
[313225573,1706970640152,-510.09356801,0.00027671,2]
[313225574,1706970640161,-500.0,0.00027671,2]
[313225575,1706970640171,-500.0,0.00027671,2]
[313225576,1706970640180,-500.0,0.00027671,2]
[313225577,1706970640189,-500.0,0.00027671,2]
[313225578,1706970640198,-500.0,0.00027671,2]
[313225579,1706970640208,-500.0,0.00027671,2]
[313225580,1706970640217,-500.0,0.00027671,2]
[313225581,1706970640226,-500.0,0.00027671,2]
[313225582,1706970640235,-770.64,0.00027671,2]
[313225583,1706970640246,-372.95353061,0.00027671,2]
[313225584,1706970640255,-500.0,0.00027671,2]
[313225585,1706970640264,-500.0,0.00027671,2]
[313225586,1706970640273,-500.0,0.00027671,2]
[313225587,1706970640283,-500.0,0.00027671,2]
[313225588,1706970640292,-500.0,0.00027671,2]
[313225589,1706970640301,-500.0,0.00027671,2]
[313225590,1706970640310,-543.0557563,0.00027671,2]
[313225591,1706970640320,-500.0,0.00027671,2]
[313225592,1706970640330,-500.0,0.00027671,2]